[Event "*** Titled Tuesday Blitz"]
[Site "Chess.com"]
[Date "2021.03.09"]
[Round "3"]
[White "Legendinunknown"]
[Black "jens1102"]
[Result "1-0"]
[WhiteElo "2634"]
[BlackElo "2421"]
[TimeControl "180+1"]
[EndTime "10:30:44 PST"]
[Termination "Legendinunknown won by checkmate"]

1. d4 {[%clk 0:03:00.9]} 1... d5 {[%clk 0:02:57.8]} 2. c4 {[%clk 0:03:01.8]}
2... c6 {[%clk 0:02:57.9]} 3. Nc3 {[%clk 0:03:02.3]} 3... Nf6 {[%clk 0:02:58.5]}
4. Nf3 {[%clk 0:03:02.9]} 4... dxc4 {[%clk 0:02:58.6]} 5. a4 {[%clk 0:03:02.5]}
5... Bf5 {[%clk 0:02:58.3]} 6. Ne5 {[%clk 0:03:02]} 6... e6 {[%clk 0:02:58.3]}
7. f3 {[%clk 0:02:59.2]} 7... Bd6 {[%clk 0:02:55.3]} 8. Nxc4 {[%clk 0:02:57.4]}
8... Bb4 {[%clk 0:02:55.2]} 9. Kf2 {[%clk 0:02:54.7]} 9... O-O {[%clk
0:02:52.3]} 10. e4 {[%clk 0:02:53.2]} 10... Bg6 {[%clk 0:02:52.6]} 11. Be3
{[%clk 0:02:49.7]} 11... Nbd7 {[%clk 0:02:50.9]} 12. Bd3 {[%clk 0:02:43.9]}
12... Re8 {[%clk 0:02:48]} 13. h4 {[%clk 0:02:35.7]} 13... h5 {[%clk 0:02:42.6]}
14. Ne2 {[%clk 0:02:30.5]} 14... e5 {[%clk 0:02:40.6]} 15. dxe5 {[%clk
0:02:29.4]} 15... Nxe5 {[%clk 0:02:40.9]} 16. Nxe5 {[%clk 0:02:30.3]} 16... Rxe5
{[%clk 0:02:41]} 17. Nf4 {[%clk 0:02:30.9]} 17... Qe7 {[%clk 0:02:21.1]} 18.
Nxg6 {[%clk 0:02:21.6]} 18... fxg6 {[%clk 0:02:22]} 19. Qb3+ {[%clk 0:02:22]}
19... Kh7 {[%clk 0:02:22.1]} 20. Bf4 {[%clk 0:02:13.6]} 20... Qc5+ {[%clk
0:01:43.2]} 21. Be3 {[%clk 0:02:08.8]} 21... Qf8 {[%clk 0:01:35.8]} 22. Ke2
{[%clk 0:01:42.5]} 22... a5 {[%clk 0:01:29.4]} 23. Rad1 {[%clk 0:01:37.6]} 23...
Rae8 {[%clk 0:01:22.5]} 24. Bc2 {[%clk 0:01:34.2]} 24... Nd5 {[%clk 0:01:18.7]}
25. g3 {[%clk 0:01:12.8]} 25... Nxe3 {[%clk 0:01:08.7]} 26. Qxe3 {[%clk
0:01:13.7]} 26... Bc5 {[%clk 0:01:04.1]} 27. Qc3 {[%clk 0:01:07.9]} 27... Bb4
{[%clk 0:00:52.3]} 28. Qb3 {[%clk 0:00:56.9]} 28... Qe7 {[%clk 0:00:47.2]} 29.
Qe3 {[%clk 0:00:40.8]} 29... Bc5 {[%clk 0:00:44.8]} 30. Qd3 {[%clk 0:00:41]}
30... Bb6 {[%clk 0:00:29]} 31. Qc3 {[%clk 0:00:35.3]} 31... Ba7 {[%clk
0:00:16.4]} 32. Rd2 {[%clk 0:00:32.3]} 32... Rc5 {[%clk 0:00:15.2]} 33. Qb3
{[%clk 0:00:31.9]} 33... Qe5 {[%clk 0:00:14.7]} 34. f4 {[%clk 0:00:27.9]} 34...
Qe7 {[%clk 0:00:12.8]} 35. Rhd1 {[%clk 0:00:27.6]} 35... Qe6 {[%clk 0:00:08.6]}
36. Qxe6 {[%clk 0:00:26.9]} 36... Rxe6 {[%clk 0:00:09.5]} 37. Bb3 {[%clk
0:00:27.5]} 37... Rxe4+ {[%clk 0:00:09.3]} 38. Kf3 {[%clk 0:00:27.4]} 38... Rb4
{[%clk 0:00:09.7]} 39. Bf7 {[%clk 0:00:24.7]} 39... Rf5 {[%clk 0:00:06.9]} 40.
Be6 {[%clk 0:00:24.7]} 40... Rf6 {[%clk 0:00:07.2]} 41. Re1 {[%clk 0:00:19.8]}
41... Bc5 {[%clk 0:00:07.4]} 42. Rd8 {[%clk 0:00:19.4]} 42... Rf8 {[%clk
0:00:07.6]} 43. Rd7 {[%clk 0:00:19.6]} 43... Rxb2 {[%clk 0:00:07.1]} 44. Ke4
{[%clk 0:00:15]} 44... Re8 {[%clk 0:00:06.8]} 45. Kd3 {[%clk 0:00:15]} 45... Rg2
{[%clk 0:00:07.1]} 46. Kc4 {[%clk 0:00:14.6]} 46... Rc2+ {[%clk 0:00:06.1]} 47.
Kb3 {[%clk 0:00:13.9]} 47... Rg2 {[%clk 0:00:06.4]} 48. f5 {[%clk 0:00:12.9]}
48... Rxg3+ {[%clk 0:00:06.5]} 49. Kc4 {[%clk 0:00:13.1]} 49... b6 {[%clk
0:00:06.3]} 50. Rf7 {[%clk 0:00:10.6]} 50... Rd8 {[%clk 0:00:04.2]} 51. fxg6+
{[%clk 0:00:08.1]} 51... Kxg6 {[%clk 0:00:04.8]} 52. Rd7 {[%clk 0:00:08.1]}
52... Rxd7 {[%clk 0:00:05]} 53. Bxd7 {[%clk 0:00:09]} 53... Rg2 {[%clk
0:00:04.7]} 54. Bxc6 {[%clk 0:00:08.9]} 54... Rh2 {[%clk 0:00:05.3]} 55. Re6+
{[%clk 0:00:08.3]} 55... Kf7 {[%clk 0:00:05.6]} 56. Bd5 {[%clk 0:00:08.6]} 56...
Rxh4+ {[%clk 0:00:05.7]} 57. Re4+ {[%clk 0:00:08.7]} 57... Kf6 {[%clk
0:00:05.7]} 58. Rxh4 {[%clk 0:00:09.6]} 58... Kg5 {[%clk 0:00:06.4]} 59. Re4
{[%clk 0:00:09.5]} 59... h4 {[%clk 0:00:06.6]} 60. Be6 {[%clk 0:00:09.9]} 60...
Kh5 {[%clk 0:00:04.4]} 61. Bg4+ {[%clk 0:00:08.7]} 61... Kg5 {[%clk 0:00:04.8]}
62. Kd5 {[%clk 0:00:09.4]} 62... g6 {[%clk 0:00:04.4]} 63. Ke6 {[%clk
0:00:09.7]} 63... Be3 {[%clk 0:00:03.3]} 64. Bh3 {[%clk 0:00:10]} 64... Bf4
{[%clk 0:00:03.7]} 65. Kf7 {[%clk 0:00:09.4]} 65... Bd2 {[%clk 0:00:02.7]} 66.
Rg4+ {[%clk 0:00:07.7]} 66... Kh5 {[%clk 0:00:02.9]} 67. Rxg6 {[%clk 0:00:08.6]}
67... Bg5 {[%clk 0:00:02.8]} 68. Rxb6 {[%clk 0:00:07.3]} 68... Be3 {[%clk
0:00:03]} 69. Rb5+ {[%clk 0:00:07.4]} 69... Kh6 {[%clk 0:00:03.8]} 70. Rxa5
{[%clk 0:00:07.7]} 70... Bd2 {[%clk 0:00:04.7]} 71. Rb5 {[%clk 0:00:07.8]} 71...
Be3 {[%clk 0:00:04.7]} 72. Bg4 {[%clk 0:00:08.2]} 72... Bd2 {[%clk 0:00:05.5]}
73. Rh5# {[%clk 0:00:07.6]} 1-0

[Event "*** Titled Tuesday Blitz"]
[Site "Chess.com"]
[Date "2021.03.09"]
[Round "3"]
[White "LamaChampetre"]
[Black "thechesscorner64"]
[Result "1-0"]
[WhiteElo "2219"]
[BlackElo "2388"]
[TimeControl "180+1"]
[EndTime "10:30:44 PST"]
[Termination "LamaChampetre won by checkmate"]

1. d4 {[%clk 0:03:00.9]} 1... Nf6 {[%clk 0:02:58.8]} 2. c4 {[%clk 0:03:01.4]}
2... e6 {[%clk 0:02:53]} 3. Nf3 {[%clk 0:03:00.4]} 3... Bb4+ {[%clk 0:02:52.9]}
4. Nbd2 {[%clk 0:02:59.3]} 4... b6 {[%clk 0:02:52.3]} 5. g3 {[%clk 0:02:58.8]}
5... Bb7 {[%clk 0:02:51.3]} 6. Bg2 {[%clk 0:02:58.9]} 6... Bxd2+ {[%clk
0:02:51.6]} 7. Bxd2 {[%clk 0:02:56.1]} 7... O-O {[%clk 0:02:52.5]} 8. O-O {[%clk
0:02:56.1]} 8... Ne4 {[%clk 0:02:52.3]} 9. Bc1 {[%clk 0:02:33.6]} 9... f5 {[%clk
0:02:48.1]} 10. Ng5 {[%clk 0:02:27.8]} 10... Qc8 {[%clk 0:02:33.2]} 11. Nxe4
{[%clk 0:02:26.4]} 11... Bxe4 {[%clk 0:02:32.1]} 12. f3 {[%clk 0:02:25.8]} 12...
Bb7 {[%clk 0:02:30.2]} 13. e4 {[%clk 0:02:24.5]} 13... fxe4 {[%clk 0:02:29.5]}
14. fxe4 {[%clk 0:02:24.8]} 14... Rxf1+ {[%clk 0:02:30]} 15. Qxf1 {[%clk
0:02:25.1]} 15... Nc6 {[%clk 0:02:30.3]} 16. Be3 {[%clk 0:02:21.6]} 16... Qf8
{[%clk 0:02:27.7]} 17. Qe2 {[%clk 0:02:20.2]} 17... Qb4 {[%clk 0:02:19.5]} 18.
Rf1 {[%clk 0:02:05.1]} 18... Rf8 {[%clk 0:02:17.8]} 19. Rxf8+ {[%clk 0:01:58.8]}
19... Qxf8 {[%clk 0:02:16.9]} 20. e5 {[%clk 0:01:59.1]} 20... Na5 {[%clk
0:02:08.5]} 21. d5 {[%clk 0:01:52.5]} 21... Qb4 {[%clk 0:01:59.8]} 22. b3 {[%clk
0:01:48.2]} 22... Qc3 {[%clk 0:01:44.6]} 23. Bf2 {[%clk 0:01:21]} 23... Qa1+
{[%clk 0:01:08.2]} 24. Be1 {[%clk 0:01:10.5]} 24... h6 {[%clk 0:01:03.5]} 25. h4
{[%clk 0:00:59]} 25... Qd4+ {[%clk 0:01:01]} 26. Bf2 {[%clk 0:00:57.2]} 26...
Qa1+ {[%clk 0:00:59.1]} 27. Kh2 {[%clk 0:00:56.1]} 27... Qc3 {[%clk 0:00:56.6]}
28. Be1 {[%clk 0:00:52.8]} 28... Qd4 {[%clk 0:00:47.1]} 29. Bxa5 {[%clk
0:00:48.6]} 29... bxa5 {[%clk 0:00:47.6]} 30. Qh5 {[%clk 0:00:33.4]} 30... Kf8
{[%clk 0:00:33.6]} 31. Qf3+ {[%clk 0:00:21.3]} 31... Kg8 {[%clk 0:00:31.3]} 32.
Qf4 {[%clk 0:00:18]} 32... Qxf4 {[%clk 0:00:29.2]} 33. gxf4 {[%clk 0:00:18.7]}
33... Kf8 {[%clk 0:00:26.4]} 34. Kg3 {[%clk 0:00:17.7]} 34... exd5 {[%clk
0:00:26.9]} 35. cxd5 {[%clk 0:00:17.4]} 35... Ba6 {[%clk 0:00:24.7]} 36. a3
{[%clk 0:00:15]} 36... Bd3 {[%clk 0:00:24.2]} 37. Kf2 {[%clk 0:00:12.6]} 37...
Ke7 {[%clk 0:00:23]} 38. Ke3 {[%clk 0:00:12.1]} 38... Bc2 {[%clk 0:00:23.5]} 39.
b4 {[%clk 0:00:11.8]} 39... axb4 {[%clk 0:00:23.2]} 40. axb4 {[%clk 0:00:12.7]}
40... d6 {[%clk 0:00:24.1]} 41. Kd4 {[%clk 0:00:12.4]} 41... Ba4 {[%clk
0:00:13.9]} 42. Bh3 {[%clk 0:00:10.4]} 42... g5 {[%clk 0:00:11.1]} 43. hxg5
{[%clk 0:00:09.5]} 43... hxg5 {[%clk 0:00:11.5]} 44. fxg5 {[%clk 0:00:09.7]}
44... Kf8 {[%clk 0:00:11.4]} 45. exd6 {[%clk 0:00:07.7]} 45... cxd6 {[%clk
0:00:11.1]} 46. Ke4 {[%clk 0:00:07.8]} 46... Kg7 {[%clk 0:00:10.8]} 47. Kf4
{[%clk 0:00:07.9]} 47... Kg6 {[%clk 0:00:10.1]} 48. Bf5+ {[%clk 0:00:07.4]}
48... Kg7 {[%clk 0:00:10.3]} 49. Be6 {[%clk 0:00:07.3]} 49... Bc2 {[%clk
0:00:10.3]} 50. Bf5 {[%clk 0:00:06]} 50... Bb3 {[%clk 0:00:10.2]} 51. Be4 {[%clk
0:00:06.1]} 51... Bc4 {[%clk 0:00:10]} 52. Kf5 {[%clk 0:00:06]} 52... Bb5 {[%clk
0:00:03.1]} 53. Ke6 {[%clk 0:00:05.8]} 53... Be8 {[%clk 0:00:02.2]} 54. Kxd6
{[%clk 0:00:05.9]} 54... Kf8 {[%clk 0:00:02.4]} 55. Ke6 {[%clk 0:00:05.6]} 55...
Bb5 {[%clk 0:00:02.2]} 56. d6 {[%clk 0:00:05.5]} 56... Bc4+ {[%clk 0:00:02.7]}
57. Kf6 {[%clk 0:00:05.1]} 57... Ke8 {[%clk 0:00:02.6]} 58. g6 {[%clk
0:00:05.3]} 58... Kd7 {[%clk 0:00:02.9]} 59. Ke5 {[%clk 0:00:05.4]} 59... Bg8
{[%clk 0:00:03.2]} 60. Bf5+ {[%clk 0:00:05.3]} 60... Kc6 {[%clk 0:00:03.1]} 61.
d7 {[%clk 0:00:04.8]} 61... Kc7 {[%clk 0:00:03.3]} 62. Kf6 {[%clk 0:00:05]}
62... a5 {[%clk 0:00:03]} 63. Ke7 {[%clk 0:00:04.7]} 63... Bc4 {[%clk
0:00:03.9]} 64. d8=Q+ {[%clk 0:00:04.5]} 64... Kc6 {[%clk 0:00:03.9]} 65. Qd6+
{[%clk 0:00:05.2]} 65... Kb7 {[%clk 0:00:04]} 66. bxa5 {[%clk 0:00:06.1]} 66...
Bb5 {[%clk 0:00:03.8]} 67. g7 {[%clk 0:00:06.9]} 67... Bc6 {[%clk 0:00:04.7]}
68. Qc5 {[%clk 0:00:05.5]} 68... Ka6 {[%clk 0:00:05.6]} 69. Qb6# {[%clk
0:00:05.4]} 1-0

[Event "*** Titled Tuesday Blitz"]
[Site "Chess.com"]
[Date "2021.03.09"]
[Round "3"]
[White "DamageDoers"]
[Black "Anna_ChessMate"]
[Result "0-1"]
[WhiteElo "2364"]
[BlackElo "2547"]
[TimeControl "180+1"]
[EndTime "10:30:49 PST"]
[Termination "Anna_ChessMate won by resignation"]

1. Nf3 {[%clk 0:02:59.6]} 1... d5 {[%clk 0:02:48.9]} 2. d4 {[%clk 0:02:59.3]}
2... Nf6 {[%clk 0:02:46.9]} 3. g3 {[%clk 0:02:59.7]} 3... Bf5 {[%clk 0:02:46.2]}
4. Bg2 {[%clk 0:03:00.1]} 4... e6 {[%clk 0:02:46.3]} 5. O-O {[%clk 0:03:00.6]}
5... Be7 {[%clk 0:02:46.9]} 6. h3 {[%clk 0:03:00.3]} 6... O-O {[%clk 0:02:45.9]}
7. Bg5 {[%clk 0:02:57.9]} 7... Nbd7 {[%clk 0:02:42]} 8. c3 {[%clk 0:02:57.6]}
8... h6 {[%clk 0:02:39.6]} 9. Bf4 {[%clk 0:02:57.2]} 9... c5 {[%clk 0:02:36.4]}
10. Ne5 {[%clk 0:02:53.9]} 10... Rc8 {[%clk 0:02:35.8]} 11. Nxd7 {[%clk
0:02:44]} 11... Qxd7 {[%clk 0:02:33.5]} 12. g4 {[%clk 0:02:39]} 12... Be4 {[%clk
0:02:32.4]} 13. f3 {[%clk 0:02:37.3]} 13... Bg6 {[%clk 0:02:29.4]} 14. e3 {[%clk
0:02:31.9]} 14... Bd6 {[%clk 0:02:26.5]} 15. Bh2 {[%clk 0:02:27.1]} 15... Bxh2+
{[%clk 0:02:25.3]} 16. Kxh2 {[%clk 0:02:28]} 16... Rfe8 {[%clk 0:02:21.9]} 17.
Nd2 {[%clk 0:02:26.4]} 17... e5 {[%clk 0:02:17.7]} 18. dxc5 {[%clk 0:02:21.2]}
18... Rxc5 {[%clk 0:02:13.4]} 19. Nb3 {[%clk 0:02:21.7]} 19... Rcc8 {[%clk
0:02:13.3]} 20. Qd2 {[%clk 0:02:21.9]} 20... Qc7 {[%clk 0:02:08.8]} 21. Kh1
{[%clk 0:02:17.5]} 21... a5 {[%clk 0:01:54.8]} 22. Qf2 {[%clk 0:01:56]} 22... a4
{[%clk 0:01:48.2]} 23. Nd2 {[%clk 0:01:56.3]} 23... Bd3 {[%clk 0:01:47.6]} 24.
Rfc1 {[%clk 0:01:52.7]} 24... e4 {[%clk 0:01:44.2]} 25. f4 {[%clk 0:01:51.3]}
25... b5 {[%clk 0:01:41.7]} 26. Bf1 {[%clk 0:01:50.9]} 26... Bxf1 {[%clk
0:01:39.7]} 27. Nxf1 {[%clk 0:01:51.8]} 27... Nd7 {[%clk 0:01:39.8]} 28. a3
{[%clk 0:01:48.5]} 28... Nc5 {[%clk 0:01:39.6]} 29. Rc2 {[%clk 0:01:41.4]} 29...
Nd3 {[%clk 0:01:38.9]} 30. Qg2 {[%clk 0:01:41.1]} 30... d4 {[%clk 0:01:36.4]}
31. exd4 {[%clk 0:01:36.8]} 31... Nxf4 {[%clk 0:01:21.9]} 32. Qg3 {[%clk
0:01:36.6]} 32... e3 {[%clk 0:01:13]} 33. Nxe3 {[%clk 0:01:25]} 33... Qb7+
{[%clk 0:01:13.1]} 34. Ng2 {[%clk 0:01:25.3]} 34... Ne2 {[%clk 0:01:01.2]} 35.
Qf2 {[%clk 0:01:24.9]} 35... Qe4 {[%clk 0:00:54.6]} 36. Rd2 {[%clk 0:01:19.7]}
36... Rc6 {[%clk 0:00:40.2]} 37. Re1 {[%clk 0:01:11.4]} 37... Rce6 {[%clk
0:00:28.6]} 38. Rdxe2 {[%clk 0:01:03]} 38... Qxe2 {[%clk 0:00:27.5]} 39. Rxe2
{[%clk 0:01:03.3]} 39... Rxe2 {[%clk 0:00:28.4]} 40. Qf1 {[%clk 0:00:52.7]}
40... Rxb2 {[%clk 0:00:27.1]} 41. Qf5 {[%clk 0:00:43.4]} 41... Ree2 {[%clk
0:00:24.1]} 42. Qc8+ {[%clk 0:00:39.4]} 42... Kh7 {[%clk 0:00:22]} 43. Qf5+
{[%clk 0:00:38.4]} 43... Kg8 {[%clk 0:00:20.5]} 44. Qf3 {[%clk 0:00:20.8]} 44...
Rec2 {[%clk 0:00:19.7]} 45. Kh2 {[%clk 0:00:15.6]} 45... g6 {[%clk 0:00:19.2]}
46. Kg3 {[%clk 0:00:15]} 46... Rb3 {[%clk 0:00:19.4]} 47. Kf4 {[%clk 0:00:07.2]}
47... Rcxc3 {[%clk 0:00:18.8]} 48. Qa8+ {[%clk 0:00:07.3]} 48... Kg7 {[%clk
0:00:18.8]} 49. Ne1 {[%clk 0:00:06.4]} 49... Rxa3 {[%clk 0:00:16.6]} 50. Qb8
{[%clk 0:00:04.4]} 50... Rxh3 {[%clk 0:00:16.7]} 51. Qe5+ {[%clk 0:00:03.5]}
51... Kh7 {[%clk 0:00:16.7]} 52. Qe7 {[%clk 0:00:03]} 52... Kg8 {[%clk
0:00:15.6]} 53. Qe8+ {[%clk 0:00:03]} 53... Kg7 {[%clk 0:00:16]} 54. Qe5+ {[%clk
0:00:03.9]} 54... Kh7 {[%clk 0:00:15.9]} 55. Qd5 {[%clk 0:00:03.7]} 55... g5+
{[%clk 0:00:14.6]} 56. Kf5 {[%clk 0:00:03.5]} 56... Kg7 {[%clk 0:00:14.9]} 57.
Qe5+ {[%clk 0:00:03.6]} 57... Kf8 {[%clk 0:00:15.4]} 58. Qh8+ {[%clk 0:00:03.6]}
58... Ke7 {[%clk 0:00:16]} 59. Qe5+ {[%clk 0:00:04.1]} 59... Kd7 {[%clk
0:00:16.6]} 60. Qd5+ {[%clk 0:00:04.1]} 60... Kc7 {[%clk 0:00:16.3]} 61. Qxf7+
{[%clk 0:00:04]} 61... Kb6 {[%clk 0:00:16.9]} 62. Qe6+ {[%clk 0:00:04.5]} 62...
Ka5 {[%clk 0:00:16.8]} 63. Qc8 {[%clk 0:00:04.8]} 63... Rac3 {[%clk 0:00:16.3]}
64. Qa8+ {[%clk 0:00:04.8]} 64... Kb4 {[%clk 0:00:16.9]} 65. d5 {[%clk
0:00:05.2]} 65... Rhe3 {[%clk 0:00:15.5]} 66. Qf8+ {[%clk 0:00:05.5]} 66... Kb3
{[%clk 0:00:15.5]} 67. Ng2 {[%clk 0:00:05.7]} 67... Red3 {[%clk 0:00:15.5]} 68.
Kg6 {[%clk 0:00:05.1]} 68... a3 {[%clk 0:00:15.2]} 69. d6 {[%clk 0:00:05.1]}
69... a2 {[%clk 0:00:15.4]} 70. Qf7+ {[%clk 0:00:05.7]} 70... Kb2 {[%clk
0:00:15.5]} 71. Qf2+ {[%clk 0:00:05.1]} 71... Rc2 {[%clk 0:00:16]} 72. Qf6+
{[%clk 0:00:04.9]} 72... Kb1 {[%clk 0:00:16.1]} 73. Ne1 {[%clk 0:00:05.4]} 73...
a1=Q {[%clk 0:00:13.9]} 74. Qxa1+ {[%clk 0:00:05.8]} 74... Kxa1 {[%clk
0:00:14.8]} 75. Nxc2+ {[%clk 0:00:05.9]} 75... Kb2 {[%clk 0:00:14.8]} 76. Nb4
{[%clk 0:00:06.2]} 76... Rxd6+ {[%clk 0:00:14.5]} 77. Kf5 {[%clk 0:00:05.9]}
77... Kb3 {[%clk 0:00:14.8]} 78. Nc6 {[%clk 0:00:04.4]} 78... Rxc6 {[%clk
0:00:15]} 0-1

[Event "*** Titled Tuesday Blitz"]
[Site "Chess.com"]
[Date "2021.03.09"]
[Round "3"]
[White "dodorox"]
[Black "Diamantidis_13"]
[Result "0-1"]
[WhiteElo "2125"]
[BlackElo "2374"]
[TimeControl "180+1"]
[EndTime "10:30:49 PST"]
[Termination "Diamantidis_13 won on time"]

1. d4 {[%clk 0:03:00.9]} 1... Nf6 {[%clk 0:02:59.8]} 2. c4 {[%clk 0:03:00]} 2...
e6 {[%clk 0:02:59.6]} 3. Nc3 {[%clk 0:03:00.1]} 3... Bb4 {[%clk 0:02:59.1]} 4.
e3 {[%clk 0:02:59.3]} 4... O-O {[%clk 0:02:58.4]} 5. Bd2 {[%clk 0:02:58.1]} 5...
d5 {[%clk 0:02:57]} 6. Nf3 {[%clk 0:02:54.5]} 6... b6 {[%clk 0:02:56.9]} 7. cxd5
{[%clk 0:02:48]} 7... exd5 {[%clk 0:02:56.4]} 8. Rc1 {[%clk 0:02:48]} 8... a6
{[%clk 0:02:56.1]} 9. Bd3 {[%clk 0:02:44]} 9... Bb7 {[%clk 0:02:54.9]} 10. Ne5
{[%clk 0:02:43.2]} 10... Nbd7 {[%clk 0:02:50.4]} 11. f4 {[%clk 0:02:42.8]} 11...
Re8 {[%clk 0:02:31]} 12. O-O {[%clk 0:02:41.2]} 12... c5 {[%clk 0:02:29.7]} 13.
Be1 {[%clk 0:02:28]} 13... Rc8 {[%clk 0:02:26.4]} 14. Bh4 {[%clk 0:02:21.2]}
14... Bxc3 {[%clk 0:02:08.8]} 15. Rxc3 {[%clk 0:02:08.1]} 15... Qc7 {[%clk
0:02:08.5]} 16. g4 {[%clk 0:01:52]} 16... b5 {[%clk 0:01:49.1]} 17. Bxf6 {[%clk
0:01:26.6]} 17... gxf6 {[%clk 0:01:50]} 18. Nxd7 {[%clk 0:01:23.2]} 18... Qxd7
{[%clk 0:01:49.5]} 19. Bf5 {[%clk 0:01:04.6]} 19... Qe7 {[%clk 0:01:34.9]} 20.
Bxc8 {[%clk 0:01:03.2]} 20... Rxc8 {[%clk 0:01:30.4]} 21. dxc5 {[%clk
0:00:59.5]} 21... b4 {[%clk 0:01:28.3]} 22. Rb3 {[%clk 0:00:39.5]} 22... d4
{[%clk 0:01:12.6]} 23. Qxd4 {[%clk 0:00:31.8]} 23... a5 {[%clk 0:01:07.4]} 24.
Rd3 {[%clk 0:00:23.4]} 24... Ba6 {[%clk 0:01:00.3]} 25. Qd6 {[%clk 0:00:07.9]}
25... Qxd6 {[%clk 0:00:52.3]} 26. Rxd6 {[%clk 0:00:08.8]} 26... Bxf1 {[%clk
0:00:52.2]} 27. Kxf1 {[%clk 0:00:09.5]} 27... Rxc5 {[%clk 0:00:52.7]} 28. Rxf6
{[%clk 0:00:09.2]} 28... Rc1+ {[%clk 0:00:48.6]} 29. Ke2 {[%clk 0:00:09.1]}
29... Rc2+ {[%clk 0:00:49.5]} 30. Kd3 {[%clk 0:00:09.5]} 30... Rxb2 {[%clk
0:00:50.4]} 31. h4 {[%clk 0:00:06.5]} 31... Rxa2 {[%clk 0:00:49.2]} 32. Rb6
{[%clk 0:00:05.7]} 32... Ra3+ {[%clk 0:00:45.8]} 33. Kd4 {[%clk 0:00:04.6]}
33... b3 {[%clk 0:00:42.5]} 34. Kc3 {[%clk 0:00:04.9]} 34... a4 {[%clk
0:00:42.1]} 35. Kb2 {[%clk 0:00:04.8]} 35... Ra2+ {[%clk 0:00:42.3]} 36. Kb1
{[%clk 0:00:05.3]} 36... Re2 {[%clk 0:00:27.6]} 37. Rb4 {[%clk 0:00:04.5]} 37...
Rxe3 {[%clk 0:00:24.4]} 38. Rxa4 {[%clk 0:00:04.8]} 38... h5 {[%clk 0:00:20.6]}
39. gxh5 {[%clk 0:00:04.4]} 39... Kg7 {[%clk 0:00:21.1]} 40. Kb2 {[%clk
0:00:04.3]} 40... Kf6 {[%clk 0:00:19.1]} 41. Rb4 {[%clk 0:00:04.1]} 41... Rf3
{[%clk 0:00:16.8]} 42. Rxb3 {[%clk 0:00:04.3]} 42... Rxf4 {[%clk 0:00:17.3]} 43.
Rh3 {[%clk 0:00:04]} 43... Rc4 {[%clk 0:00:15.7]} 44. Kb3 {[%clk 0:00:04.3]}
44... Rc7 {[%clk 0:00:15.2]} 45. Rg3 {[%clk 0:00:04.3]} 45... Kf5 {[%clk
0:00:14.8]} 46. Kb2 {[%clk 0:00:04.3]} 46... f6 {[%clk 0:00:10.1]} 47. Kb3
{[%clk 0:00:04.5]} 47... Kf4 {[%clk 0:00:10.5]} 48. Rg1 {[%clk 0:00:03.9]} 48...
Rh7 {[%clk 0:00:08.1]} 49. Kc3 {[%clk 0:00:02.7]} 49... Rxh5 {[%clk 0:00:07.9]}
50. Rh1 {[%clk 0:00:03.1]} 50... Kg3 {[%clk 0:00:05.1]} 51. Kd3 {[%clk
0:00:03.1]} 51... Rxh4 {[%clk 0:00:05.1]} 52. Rf1 {[%clk 0:00:03.4]} 52... Rf4
{[%clk 0:00:05.1]} 53. Rg1+ {[%clk 0:00:03.2]} 53... Kf2 {[%clk 0:00:05.5]} 54.
Rg6 {[%clk 0:00:02.6]} 54... f5 {[%clk 0:00:05.4]} 55. Ra6 {[%clk 0:00:02]}
55... Kf3 {[%clk 0:00:05.7]} 56. Ra2 {[%clk 0:00:01.7]} 56... Re4 {[%clk
0:00:05.3]} 57. Rb2 {[%clk 0:00:01.2]} 57... Re8 {[%clk 0:00:05.1]} 58. Rb1
{[%clk 0:00:01.5]} 58... f4 {[%clk 0:00:05.3]} 59. Rf1+ {[%clk 0:00:01.9]} 59...
Kg3 {[%clk 0:00:05.6]} 60. Rh1 {[%clk 0:00:02.2]} 60... f3 {[%clk 0:00:05.1]}
61. Rg1+ {[%clk 0:00:02.6]} 61... Kf2 {[%clk 0:00:05.2]} 62. Rg6 {[%clk
0:00:02.8]} 62... Kf1 {[%clk 0:00:04.6]} 63. Rf6 {[%clk 0:00:02.4]} 63... f2
{[%clk 0:00:05]} 64. Kd2 {[%clk 0:00:02.8]} 64... Rd8+ {[%clk 0:00:04.5]} 65.
Kc2 {[%clk 0:00:02]} 65... Ke1 {[%clk 0:00:04.6]} 66. Re6+ {[%clk 0:00:01.8]}
66... Kf1 {[%clk 0:00:05]} 67. Rf6 {[%clk 0:00:02.6]} 67... Rd4 {[%clk
0:00:04.9]} 68. Kc3 {[%clk 0:00:02.2]} 68... Rg4 {[%clk 0:00:04.6]} 69. Kd2
{[%clk 0:00:01.6]} 69... Kg1 {[%clk 0:00:04.8]} 70. Ke2 {[%clk 0:00:02.2]} 70...
Rg2 {[%clk 0:00:04.1]} 0-1